fUST/lending_fUST_20260201
["ID","MTS","AMOUNT","RATE_DAILY","PERIOD"]
[404157321,1769886486558,299.9295039,0.00013699,2]
[404157322,1769886486839,500.0,0.00013273,2]
[404157323,1769886486868,1000.0,0.00013821,2]
[404157324,1769886486900,1000.0,0.00013821,2]
[404157325,1769886486929,500.0,0.00013273,2]
[404157326,1769886486958,326.41057485,0.00013273,2]
[404157327,1769886486980,173.58942515,0.00013273,2]
[404157328,1769886487005,500.0,0.00013273,2]
[404157329,1769886487031,1500.0,0.00014368,2]
[404157330,1769886487056,1000.0,0.00013821,2]
[404157331,1769886487081,514.80636698,0.00013821,2]
[404157332,1769886487105,1500.0,0.00014368,2]
[404157333,1769886487130,2000.0,0.00014916,2]
[404157336,1769886545313,-301.51184967,0.00013273,2]
[404157337,1769886547277,-198.48815033,0.00013273,2]
[404157338,1769886547298,-69.50869559,0.00013273,2]
[404157339,1769886549315,-202.18188724,0.00013273,2]
[404157341,1769886552125,-171.29257059,0.00013273,2]
[404157342,1769886553843,-57.01684658,0.00013273,2]
[404157343,1769886553864,-140.69889005,0.00013699,2]
[404157347,1769886555362,-24.96910306,0.00013699,2]
[404157348,1769886555384,-160.75417313,0.00013699,2]
[404157349,1769886555404,-56.48692913,0.00013699,2]
[404157350,1769886557005,-443.51307087,0.00013699,2]
[404157351,1769886557026,-94.48692913,0.00013699,2]
[404157352,1769886558532,-317.14285647,0.00013699,2]
[404157353,1769886560273,-88.3702144,0.00013699,2]
[404157354,1769886560294,-211.6297856,0.00013699,2]
[404157355,1769886561702,-318.32989685,0.00013699,2]
[404157356,1769886564357,-37.66760579,0.00013699,2]
[404157357,1769886564380,-462.33239421,0.00013699,2]
[404157358,1769886567005,-37.95861199,0.00013699,2]
[404157359,1769886567028,-303.74722469,0.00013699,2]
[404157360,1769886569620,-158.41698519,0.00013699,2]
[404157361,1769886569642,-28.04758991,0.00013699,2]
[404157362,1769886571647,-374.49177223,0.00013699,2]
[404157363,1769886573119,-99.60248787,0.00013699,2]
[404157364,1769886573140,-200.39751213,0.00013821,2]
[404157365,1769886574749,-301.4272266,0.00013821,2]
[404157366,1769886574773,-37.12225825,0.00013821,2]
[404157367,1769886579540,-184.43475781,0.00013821,2]
[404157368,1769886581057,-248.84534556,0.00013821,2]
[404157369,1769886583914,-362.00817954,0.00013821,2]
[404157370,1769886608059,248.70562124,0.0003676,119]
[404157426,1769886631791,-167.58945884,0.00013821,2]
[404157429,1769886631828,-233.07535415,0.00013821,2]
[404157432,1769886631855,-617.0,0.00013821,2]
[404157435,1769886631880,-300.0,0.00013971,2]
[404157437,1769886631905,-300.0,0.00013971,2]
[404157438,1769886631932,-300.0,0.00013971,2]
[404157439,1769886631958,-300.0,0.00013971,2]
[404157440,1769886631988,-1200.0,0.00013971,2]
[404157442,1769886632017,-300.0,0.00013972,2]
[404157443,1769886632049,-300.0,0.00013972,2]
[404157445,1769886632077,-300.0,0.00013972,2]
[404157447,1769886632102,-300.0,0.00013972,2]
[404157448,1769886632127,-300.0,0.00013972,2]
[404157449,1769886632153,-300.0,0.00013972,2]
[404157450,1769886632179,-300.0,0.00013972,2]
[404157451,1769886632205,-300.0,0.00013972,2]
[404157452,1769886632230,-300.0,0.00013972,2]
[404157453,1769886632258,-300.0,0.00013972,2]
[404157454,1769886632284,-300.0,0.00013972,2]
[404157455,1769886632314,-300.0,0.00013972,2]
[404157456,1769886632340,-300.0,0.00013972,2]
[404157457,1769886632366,-300.0,0.00013972,2]
[404157458,1769886632392,-300.0,0.00013972,2]
[404157459,1769886632417,-1000.0,0.00014247,2]
[404157460,1769886632442,-1000.0,0.00014247,2]
[404157461,1769886632466,-500.0,0.00014368,2]
[404157462,1769886632490,-1500.0,0.00014795,2]
[404157463,1769886632514,-188.92992331,0.00014795,2]
[404157464,1769886632542,-420.0,0.00015306,2]
[404157465,1769886632566,-420.0,0.00015306,2]
[404157466,1769886632590,-420.0,0.00015306,2]
[404157467,1769886632623,-420.0,0.00015306,2]
[404157468,1769886632649,-1680.0,0.00015368,2]
[404157469,1769886632675,-275.02891789,0.00015821,2]
[404157470,1769886632700,-544.76043412,0.00016362,2]
[404157471,1769886632726,-5000.0,0.00016428,2]
[404157472,1769886632750,-924.439951,0.00016569,2]
[404157473,1769886632773,-1000.0,0.00016594,2]
[404157474,1769886632799,-1000.0,0.00016594,2]
[404157475,1769886632824,-1000.0,0.00016594,2]
[404157476,1769886632850,-1000.0,0.00016594,2]
[404157477,1769886632876,-1000.0,0.00016594,2]
[404157478,1769886632903,-468.62094935,0.00016594,2]
[404157479,1769886632930,-159761.02711349,0.00016634,2]
[404157480,1769886632956,-207.96872306,0.00016634,2]
[404157481,1769886632984,-587.0,0.0001677,2]
[404157482,1769886633127,-587.0,0.0001677,2]
[404157483,1769886633153,-587.0,0.0001677,2]
[404157484,1769886633179,-587.0,0.0001677,2]
[404157485,1769886633204,-2351.0,0.00016905,2]
[404157486,1769886633229,-33922.41001204,0.00016925,2]
[404157487,1769886633256,-600.0,0.00016925,2]
[404157488,1769886633280,-2978.31,0.00017074,2]
[404157489,1769886633312,-924.439951,0.00017267,2]
[404157490,1769886633336,-1020.4466765,0.00017537,2]
[404157491,1769886633364,-316.98248164,0.00017821,2]
[404157492,1769886633388,-924.439951,0.00017964,2]
[404157493,1769886633412,-415.0,0.00018373,2]
[404157494,1769886633438,-823.0,0.00018373,2]
[404157495,1769886633465,-441.0,0.00018373,2]
[404157496,1769886633492,-3292.0,0.00018595,2]
[404157497,1769886633519,-720.0,0.00018617,2]
[404157498,1769886633547,-924.439951,0.00018662,2]
[404157499,1769886633571,-924.439951,0.00019359,2]
[404157500,1769886633595,-157.34,0.000194,2]
[404157501,1769886633621,-17694.2560267,0.00019807,2]
[404157502,1769886633648,-358.93604539,0.00019821,2]
[404157503,1769886633673,-924.439951,0.00020057,2]
[404157504,1769886633698,-1152.0,0.00020129,2]
[404157505,1769886633723,-500.0,0.00020302,2]
[404157506,1769886633751,-500.0,0.00020303,2]
[404157507,1769886633778,-500.0,0.00020303,2]
[404157508,1769886633807,-500.0,0.00020303,2]
[404157509,1769886633833,-500.0,0.00020303,2]
[404157510,1769886633858,-500.0,0.00020303,2]
[404157511,1769886633883,-500.0,0.00020303,2]
[404157512,1769886633908,-500.0,0.00020303,2]
[404157513,1769886633933,-500.0,0.00020303,2]
[404157514,1769886633959,-500.0,0.00020303,2]
[404157515,1769886633988,-500.0,0.00020303,2]
[404157516,1769886634015,-500.0,0.00020303,2]
[404157517,1769886634042,-367.98622174,0.00020303,2]
[404157518,1769886634069,-500.0,0.00020303,2]
[404157519,1769886634094,-500.0,0.00020303,2]
[404157520,1769886634118,-500.0,0.00020303,2]
[404157521,1769886634144,-302.07742669,0.00020303,2]
[404157522,1769886634180,-500.0,0.00020303,2]
[404157523,1769886634210,-500.0,0.00020303,2]
[404157524,1769886634237,-500.0,0.00020303,2]
[404157525,1769886634263,-500.0,0.00020303,2]
[404157526,1769886634293,-303.0652178,0.00020303,2]
[404157527,1769886634321,-500.0,0.00020303,2]
[404157528,1769886634348,-500.0,0.00020303,2]
[404157529,1769886634376,-500.0,0.00020303,2]
[404157530,1769886634404,-189.09058513,0.00020303,2]
[404157531,1769886634430,-3948.1221809,0.00020304,2]
[404157532,1769886634457,-4609.0,0.00020455,2]
[404157533,1769886634485,-864.0,0.00020479,2]
[404157534,1769886634511,-500.0,0.00020576,2]
[404157535,1769886634535,-500.0,0.0002085,2]
[404157536,1769886634564,-500.0,0.00021124,2]
[404157537,1769886634589,-628.62423188,0.00021398,2]
[404157538,1769886634616,-400.88960913,0.00021821,2]
[404157539,1769886634643,-328.0,0.00021867,2]
[404157540,1769886634668,-250.0,0.00021959,2]
[404157541,1769886634693,-1613.0,0.00022053,2]
[404157542,1769886634719,-1292.0,0.000225,2]
[404157543,1769886634746,-1000.0,0.00022527,10]
[404157544,1769886634771,-1500.0,0.00022833,2]
[404157545,1769886634798,-153.46,0.00022833,2]
[404157546,1769886634824,-153.46,0.00022833,2]
[404157547,1769886634851,-153.46,0.00022833,2]
[404157548,1769886634877,-153.46,0.00022833,2]
[404157549,1769886634903,-153.41,0.00022833,2]
[404157550,1769886634927,-500.0,0.00022933,2]
[404157551,1769886634951,-500.0,0.00022933,2]
[404157552,1769886634975,-500.0,0.00022933,2]
[404157553,1769886635002,-172.67072167,0.00022959,8]
[404157554,1769886635029,-442.84317288,0.00023821,2]
[404157555,1769886635063,-2258.0,0.00024161,2]
[404157556,1769886635094,-825.084582,0.00024315,2]
[404157557,1769886635117,-172.0,0.00024603,13]
[404157558,1769886635142,-150.0,0.00024658,2]
[404157559,1769886635169,-1000.0,0.0002478,10]
[404157560,1769886635196,-244.0,0.0002478,10]
[404157561,1769886635220,-500.0,0.00024899,2]
[404157562,1769886635244,-500.0,0.00024899,2]
[404157563,1769886635268,-500.0,0.00024899,2]
[404157564,1769886635296,-387.71058038,0.00024899,2]
[404157565,1769886635320,-2000.0,0.00024899,2]
[404157566,1769886635344,-3000.0,0.00025,2]
[404157567,1769886635369,-3000.0,0.0002501,2]
[404157568,1769886635395,-3000.0,0.0002502,2]
[404157569,1769886635420,-3000.0,0.0002503,2]
[404157570,1769886635445,-3000.0,0.0002504,2]
[404157571,1769886635471,-3000.0,0.0002505,2]
[404157572,1769886635494,-3237.79994856,0.0002505,2]
[404157573,1769886635519,-3000.0,0.0002506,2]
[404157574,1769886635548,-3000.0,0.0002507,2]
[404157575,1769886635684,-3000.0,0.0002508,2]
[404157576,1769886635717,-3000.0,0.0002509,2]
[404157577,1769886635746,-501.65,0.000251,7]
[404157578,1769886635771,-3000.0,0.000251,2]
[404157579,1769886635799,-169.17,0.000251,7]
[404157580,1769886635824,-155.88,0.000251,7]
[404157581,1769886635850,-3000.0,0.0002511,2]
[404157582,1769886635875,-3000.0,0.0002512,2]
[404157583,1769886635901,-3000.0,0.0002513,2]
[404157584,1769886635925,-4057.98584,0.0002514,2]
[404157585,1769886635948,-250.0,0.00025205,2]
[404157586,1769886635973,-150.0,0.00025206,2]
[404157587,1769886635998,-150.0,0.00025206,2]
[404157588,1769886636022,-150.0,0.00025206,2]
[404157589,1769886636048,-201.4653447,0.00025206,2]
[404157590,1769886636073,-500.0,0.00025206,2]
[404157591,1769886636097,-151.14235464,0.00025206,2]
[404157592,1769886636121,-211.02010196,0.00025206,2]
[404157593,1769886636145,-500.0,0.00025206,2]
[404157594,1769886636169,-500.0,0.00025206,2]
[404157595,1769886636192,-150.0,0.00025206,2]
[404157596,1769886636216,-150.0,0.00025206,2]
[404157597,1769886636239,-150.0,0.00025206,2]
[404157598,1769886636266,-284.2999951,0.00025206,2]
[404157599,1769886636292,-150.0,0.00025206,2]
[404157600,1769886636321,-150.0,0.00025206,2]
[404157601,1769886636345,-500.0,0.00025206,2]
[404157602,1769886636370,-150.0,0.00025206,2]
[404157603,1769886636395,-150.0,0.00025206,2]
[404157604,1769886636418,-250.9368634,0.00025206,2]
[404157605,1769886636443,-202.37064087,0.00025206,2]
[404157606,1769886636468,-500.0,0.00025206,2]
[404157607,1769886636494,-500.0,0.00025206,2]
[404157608,1769886636521,-150.0,0.00025206,2]
[404157609,1769886636550,-500.0,0.00025206,2]
[404157610,1769886636575,-150.0,0.00025206,2]
[404157611,1769886636601,-262.38384027,0.00025206,2]
[404157612,1769886636625,-150.0,0.00025206,2]
[404157613,1769886636652,-500.0,0.00025206,2]
[404157614,1769886636675,-500.0,0.00025206,2]
[404157615,1769886636699,-208.5968267,0.00025206,2]
[404157616,1769886636722,-150.0,0.00025343,2]
[404157617,1769886636745,-153.75884228,0.00025343,2]
[404157618,1769886636770,-500.0,0.00025343,2]
[404157619,1769886636798,-512.85619446,0.00025343,2]
[404157620,1769886636822,-150.0,0.00025343,2]
[404157621,1769886636847,-500.0,0.00025343,2]
[404157622,1769886636872,-150.0,0.00025343,2]
[404157623,1769886636897,-200.3613332,0.00025343,2]
[404157624,1769886636921,-150.0,0.00025343,2]
[404157625,1769886636944,-150.0,0.00025343,2]
[404157626,1769886636969,-500.0,0.00025343,2]
[404157627,1769886636993,-150.0,0.00025343,2]
[404157628,1769886637019,-500.0,0.00025343,2]
[404157629,1769886637048,-573.42161175,0.00025343,2]
[404157630,1769886637071,-150.0,0.00025343,2]
[404157631,1769886637094,-500.0,0.00025343,2]
[404157632,1769886637119,-239.60909828,0.00025343,2]
[404157633,1769886637142,-550.0,0.00025343,2]
[404157634,1769886637166,-500.0,0.00025343,2]
[404157635,1769886637191,-3237.79994856,0.0002547,2]
[404157636,1769886637215,-152.48675595,0.0002548,2]
[404157637,1769886637240,-500.0,0.0002548,2]
[404157638,1769886637264,-150.14689112,0.0002548,2]
[404157639,1769886637287,-500.0,0.0002548,2]
[404157640,1769886637316,-150.0,0.0002548,2]
[404157641,1769886637340,-295.65436129,0.0002548,2]
[404157642,1769886637365,-500.0,0.0002548,2]
[404157643,1769886637389,-500.0,0.0002548,2]
[404157644,1769886637413,-296.16286123,0.0002548,2]
[404157645,1769886637439,-500.0,0.0002548,2]
[404157646,1769886637463,-500.0,0.0002548,2]
[404157647,1769886637488,-730.05,0.000255,14]
[404157648,1769886637514,-500.0,0.00025617,2]
[404157649,1769886637539,-311.32015771,0.00025617,2]
[404157650,1769886637568,-150.0,0.00025617,2]
[404157651,1769886637593,-500.0,0.00025617,2]
[404157654,1769886637617,-250.0,0.00025617,2]
[404157655,1769886637641,-500.0,0.00025617,2]
[404157656,1769886637666,-500.0,0.00025617,2]
[404157657,1769886637690,-160.0,0.00025619,2]
[404157658,1769886637715,-160.0,0.00025619,2]
[404157659,1769886637739,-1041.66666667,0.0002571,2]
[404157661,1769886637764,-200.20523241,0.00025753,2]
[404157662,1769886637789,-208.45746156,0.00025754,2]
[404157664,1769886637816,-150.57090573,0.00025754,2]
[404157667,1769886637840,-500.0,0.00025754,2]
[404157669,1769886637864,-500.0,0.00025754,2]
[404157670,1769886637887,-500.0,0.00025754,2]
[404157674,1769886637913,-484.79673663,0.00025821,2]
[404157677,1769886637937,-500.0,0.00025891,2]
[404157681,1769886637961,-500.0,0.00025891,2]
[404157684,1769886637990,-522.60105806,0.00026028,2]
[404157688,1769886638015,-500.0,0.00026028,2]
[404157699,1769886638128,-500.0,0.00026165,2]
[404157703,1769886638155,-611.50039414,0.00026302,2]
[404157707,1769886638180,-3162.0,0.0002647,2]
[404157710,1769886638205,-189.0,0.00026795,22]
[404157714,1769886638230,-1000.0,0.00027258,30]
[404157719,1769886638255,-492.0,0.00027258,30]
[404157722,1769886638281,-150.0,0.00027397,2]
[404157725,1769886638311,-156.11938397,0.00027534,2]
[404157728,1769886638336,-2000.0,0.00027639,12]
[404157729,1769886638360,-500.0,0.00027791,7]
[404157730,1769886638386,-526.75030037,0.00027821,2]
[404157731,1769886638411,-700.0,0.00027863,7]
[404157732,1769886638437,-155.88,0.000279,7]
[404157733,1769886638462,-168.0,0.00027981,2]
[404157734,1769886638485,-160.0,0.00028,7]
[404157735,1769886638508,-700.0,0.00028006,7]
[404157736,1769886638533,-700.0,0.00028044,7]
[404157737,1769886638562,-168.0,0.00028081,2]
[404157738,1769886638590,-168.0,0.00028104,2]
[404157739,1769886638616,-168.0,0.00028106,2]
[404157740,1769886638642,-700.0,0.00028155,7]
[404157741,1769886638668,-273.84,0.00028157,2]
[404157742,1769886638694,-730.05,0.000282,14]
[404157743,1769886638719,-500.0,0.00028203,7]
[404157744,1769886638744,-700.0,0.0002824,7]
[404157745,1769886638770,-700.0,0.0002826,7]
[404157746,1769886638799,-500.0,0.00028268,7]
[404157747,1769886638824,-700.0,0.00028303,7]
[404157748,1769886638848,-178.92208645,0.00028341,5]
[404157749,1769886638874,-157.43607312,0.00028341,5]
[404157750,1769886638903,-500.0,0.00028362,7]
[404157751,1769886638928,-700.0,0.00028386,7]
[404157752,1769886638950,-500.0,0.00028387,7]
[404157753,1769886638975,-168.0,0.00028392,2]
[404157754,1769886639002,-700.0,0.00028424,7]
[404157755,1769886639027,-151.62002564,0.00028444,7]
[404157756,1769886639052,-700.0,0.00028493,7]
[404157757,1769886639077,-700.0,0.00028494,7]
[404157758,1769886639103,-700.0,0.00028522,7]
[404157759,1769886639127,-160.0,0.00028544,7]
[404157760,1769886639152,-1041.66666667,0.00028544,7]
[404157761,1769886639176,-500.0,0.00028552,7]
[404157762,1769886639202,-487.0,0.00028563,2]
[404157763,1769886639228,-880.57,0.00028563,2]
[404157764,1769886639253,-700.0,0.00028578,7]
[404157765,1769886639278,-700.0,0.00028761,7]
[404157766,1769886639309,-168.0,0.00028773,2]
[404157767,1769886639333,-500.0,0.00028782,7]
[404157768,1769886639358,-700.0,0.00028838,7]
[404157769,1769886639384,-700.0,0.0002885,7]
[404157770,1769886639410,-700.0,0.00028859,7]
[404157771,1769886639435,-700.0,0.0002886,7]
[404157772,1769886639458,-166.79,0.000289,2]
[404157773,1769886639481,-500.0,0.00028916,7]
[404157774,1769886639504,-226.4112131,0.00028939,2]
[404157775,1769886639529,-700.0,0.00028951,7]
[404157776,1769886639557,-700.0,0.00028973,7]
[404157777,1769886639583,-166.0,0.00028986,32]
[404157778,1769886639607,-500.0,0.00028999,7]
[404157779,1769886639631,-160.0,0.00029,10]
[404157780,1769886639654,-160.0,0.00029,10]
[404157781,1769886639679,-1041.66666667,0.00029,10]
[404157782,1769886639703,-4427.0,0.00029,2]
[404157784,1769886639725,-3237.79994856,0.00029003,2]
[404157787,1769886639749,-700.0,0.00029013,7]
[404157788,1769886639774,-700.0,0.00029045,7]
[404157791,1769886639803,-700.0,0.00029072,7]
[404157793,1769886639829,-168.0,0.00029076,2]
[404157796,1769886639853,-500.0,0.00029129,7]
[404157799,1769886639878,-500.0,0.00029163,7]
[404157803,1769886639903,-500.0,0.00029173,7]
[404157806,1769886639926,-500.0,0.0002919,7]
[404157810,1769886639950,-700.0,0.00029257,7]
[404157814,1769886639976,-500.0,0.00029272,7]
[404157817,1769886640000,-700.0,0.00029321,7]
[404157821,1769886640024,-500.0,0.00029341,7]
[404157824,1769886640051,-500.0,0.00029361,7]
[404157828,1769886640077,-700.0,0.00029373,7]
[404157832,1769886640102,-700.0,0.00029466,7]
[404157835,1769886640126,-700.0,0.00029522,7]
[404157838,1769886640149,-700.0,0.00029527,7]
[404157842,1769886640174,-168.0,0.0002957,2]
[404157845,1769886640198,-700.0,0.0002968,7]
[404157849,1769886640222,-500.0,0.00029708,7]
[404157852,1769886640245,-624.19749998,0.00029725,7]
[404157856,1769886640269,-700.0,0.00029741,7]
[404157859,1769886640294,-700.0,0.00029762,7]
[404157863,1769886640318,-700.0,0.00029764,7]
[404157866,1769886640342,-700.0,0.00029773,7]
[404157870,1769886640368,-568.70386412,0.00029821,2]
[404157884,1769886640481,-700.0,0.00029824,7]
[404157888,1769886640507,-700.0,0.00029838,7]
[404157891,1769886640531,-700.0,0.00029887,7]
[404157894,1769886640555,-500.0,0.00029916,7]
[404157898,1769886640581,-1000.0,0.00029983,30]
[404157902,1769886640608,-791.0,0.00029983,30]
[404157906,1769886640632,-500.0,0.00029987,7]
[404157909,1769886640655,-700.0,0.00029987,7]
[404157913,1769886640681,-168.0,0.00030035,2]
[404157917,1769886640704,-500.0,0.00030047,7]
[404157920,1769886640727,-500.0,0.00030075,7]
[404157924,1769886640751,-700.0,0.00030101,7]
[404157927,1769886640775,-700.0,0.00030103,7]
[404157931,1769886640802,-168.0,0.0003012,2]
[404157935,1769886640826,-500.0,0.00030154,7]
[404157938,1769886640851,-168.0,0.00030178,2]
[404157942,1769886640876,-730.05,0.000302,14]
[404157943,1769886640900,-700.0,0.00030201,7]
[404157945,1769886640925,-168.0,0.00030205,2]
[404157949,1769886640951,-700.0,0.00030325,7]
[404157952,1769886640977,-500.0,0.00030369,7]
[404157956,1769886641001,-2000.0,0.00030379,22]
[404157960,1769886641026,-168.0,0.00030399,2]
[404157963,1769886641051,-242.81521,0.000305,120]
[404157967,1769886641074,-238.11817,0.000305,120]
[404157970,1769886641102,-700.0,0.0003054,7]
[404157974,1769886641127,-700.0,0.00030545,7]
[404157978,1769886641150,-700.0,0.00030564,7]
[404157981,1769886641175,-168.0,0.00030566,2]
[404157985,1769886641199,-700.0,0.00030577,7]
[404157989,1769886641224,-700.0,0.00030589,7]
[404157992,1769886641248,-166.79,0.000306,2]
[404157996,1769886641274,-500.0,0.00030633,7]
[404157999,1769886641300,-500.0,0.00030642,7]
[404158003,1769886641324,-500.0,0.00030649,7]
[404158007,1769886641347,-500.0,0.00030716,7]
[404158010,1769886641372,-700.0,0.00030722,7]
[404158014,1769886641396,-500.0,0.00030744,7]
[404158018,1769886641421,-700.0,0.00030773,7]
[404158021,1769886641446,-700.0,0.00030786,7]
[404158025,1769886641470,-700.0,0.0003079,7]
[404158028,1769886641493,-160.0,0.000308,7]
[404158032,1769886641517,-1041.66666667,0.000308,7]
[404158035,1769886641541,-700.0,0.00030928,7]
[404158039,1769886641568,-500.0,0.00030939,7]
[404158043,1769886641593,-700.0,0.00030947,7]
[404158046,1769886641616,-3237.79994856,0.0003099,2]
[404158050,1769886641640,-211.35772596,0.00031,120]
[404158053,1769886641663,-186.0049703,0.00031,120]
[404158057,1769886641689,-235.31413048,0.00031,120]
[404158061,1769886641712,-199.6146215,0.00031,120]
[404158065,1769886641739,-172.62923835,0.00031,120]
[404158068,1769886641762,-204.40679625,0.00031,120]
[404158072,1769886641786,-169.99846014,0.00031,120]
[404158075,1769886641812,-239.968,0.00031,120]
[404158079,1769886641836,-218.13697807,0.00031,120]
[404158083,1769886641860,-261.9287712,0.00031,120]
[404158086,1769886641883,-288.80145324,0.00031,120]
[404158090,1769886641907,-278.75906262,0.00031,120]
[404158093,1769886641931,-500.0,0.00031,7]
[404158097,1769886641955,-164.57044202,0.00031,120]
[404158101,1769886641981,-755.95088949,0.00031055,7]
[404158104,1769886642006,-744.872401,0.00031063,7]
[404158108,1769886642030,-500.0,0.00031127,7]
[404158111,1769886642057,-180.0,0.00031178,44]
[404158114,1769886642080,-500.0,0.00031192,7]
[404158118,1769886642102,-799.27363586,0.00031193,7]
[404158121,1769886642128,-4618.0,0.00031773,2]
[404158125,1769886642153,-610.65742787,0.00031821,2]
[404158129,1769886642179,-211.35772596,0.000319,120]
[404158133,1769886642203,-172.62923835,0.000319,120]
[404158136,1769886642226,-218.13697807,0.000319,120]
[404158140,1769886642251,-157.34,0.000319,7]
[404158143,1769886642275,-238.11817,0.000322,120]
[404158147,1769886642303,-6054.0974,0.0003222,30]
[404158151,1769886642327,-228.2,0.00032458,2]
[404158154,1769886642351,-500.0,0.00032876,10]
[404158158,1769886642378,-500.0,0.00032876,10]
[404158162,1769886642402,-500.0,0.00032876,10]
[404158165,1769886642426,-500.0,0.00032876,10]
[404158169,1769886642451,-500.0,0.00032876,10]
[404158173,1769886642476,-500.0,0.00032876,10]
[404158179,1769886642510,-500.0,0.00032876,10]
[404158183,1769886642537,-500.0,0.00032876,10]
[404158186,1769886642570,-500.0,0.00032876,10]
[404158190,1769886642606,-500.0,0.00032876,10]
[404158194,1769886642634,-500.0,0.00032876,10]
[404158198,1769886642663,-500.0,0.00032876,10]
[404158211,1769886642773,-500.0,0.00032876,10]
[404158214,1769886642806,-500.0,0.00032876,10]
[404158218,1769886642831,-500.0,0.00032876,10]
[404158222,1769886642857,-500.0,0.00032876,10]
[404158225,1769886642884,-500.0,0.00032876,10]
[404158229,1769886642909,-500.0,0.00032876,10]
[404158233,1769886642935,-2764.2,0.00032877,10]
[404158237,1769886642959,-2303.5,0.00032877,10]
[404158240,1769886642988,-1919.58,0.00032877,10]
[404158244,1769886643014,-1599.65,0.00032877,10]
[404158248,1769886643038,-211.35772596,0.000329,120]
[404158252,1769886643070,-172.62923835,0.000329,120]
[404158255,1769886643096,-218.13697807,0.000329,120]
[404158259,1769886643124,-1000.0,0.00032982,30]
[404158263,1769886643152,-1000.0,0.00032982,30]
[404158267,1769886643178,-1041.66666667,0.00033,10]
[404158271,1769886643203,-147847.55600796,0.00033026,4]
[404158274,1769886643227,-2000.0,0.00033118,32]
[404158277,1769886643253,-1036.2422609,0.000332,117]
[404158281,1769886643278,-562.32,0.00033698,30]
[404158284,1769886643305,-5495.18070558,0.00033721,60]
[404158291,1769886643343,-652.61099161,0.00033821,120]
[404158298,1769886643376,-211.35772596,0.000339,120]
[404158305,1769886643403,-172.62923835,0.000339,120]
[404158310,1769886643428,-218.13697807,0.000339,120]
[404158313,1769886643454,-238.11817,0.000339,120]
[404158317,1769886643480,-730.05,0.000339,30]
[404158321,1769886643509,-225.28,0.00033964,60]
[404158326,1769886643534,-166.79,0.00034,2]
[404158329,1769886643563,-2055.81,0.00034047,60]
[404158330,1769886643590,-2055.81,0.00034147,60]
[404158331,1769886643614,-3237.79994856,0.00034237,2]
[404158332,1769886643638,-710.0,0.00034239,11]
[404158333,1769886643664,-2055.81,0.00034247,60]
[404158334,1769886643691,-710.0,0.00034284,11]
[404158335,1769886643718,-2055.81,0.00034347,60]
[404158336,1769886643745,-2055.81,0.00034447,60]
[404158337,1769886643770,-177.0,0.00034466,69]
[404158338,1769886643800,-562.32,0.0003452,31]
[404158339,1769886643829,-2055.818,0.00034547,60]
[404158340,1769886643856,-510.19747855,0.00034575,5]
[404158341,1769886643886,-234.67,0.00034664,60]
[404158342,1769886643913,-721.53,0.00034756,30]
[404158343,1769886643938,-211.35772596,0.000349,120]
[404158344,1769886643963,-218.13697807,0.000349,120]